bitfinex/quotes_ETHUSD_20220202
["timestamp","ask_amount","ask_price","bid_price","bid_amount"]
[1643818739153,0.1885,2653.1,2651.9,1.60593125]
[1643818739653,1.12992711,2653.4,2652.0,0.1885]
[1643818739850,1.12992711,2653.4,2652.3,0.69027272]
[1643818740052,1.12992711,2653.4,2652.4,0.452]
[1643818740053,0.1884,2653.3,2652.4,0.452]
[1643818740254,1.11729,2653.4,2652.4,0.452]
[1643818740752,1.11729,2653.4,2652.4,0.6404]
[1643818741154,1.11729,2653.4,2652.4,0.452]
[1643818741352,1.11729,2653.4,2652.5,0.3015944]
[1643818741557,1.11729,2653.4,2652.6,0.452]
[1643818741951,0.18941562,2653.0,2652.6,1.60110897]
[1643818742209,1.30670562,2653.0,2652.6,0.452]
[1643818742606,1.30670562,2653.0,2652.3,0.1884]
[1643818742805,1.32516033,2653.0,2652.3,0.1884]
[1643818743007,1.36159709,2653.0,2652.3,0.1884]
[1643818743211,0.2128559,2652.4,2652.3,0.1884]
[1643818744411,0.2128559,2652.4,2652.3,0.0884]
[1643818745209,0.2128559,2652.4,2652.2,0.29]
[1643818745714,1.08395347,2652.4,2652.2,0.29]
[1643818746954,1.08869213,2652.4,2652.2,0.29]
[1643818747855,1.08395347,2652.4,2652.2,0.29]
[1643818748259,0.21759456,2652.4,2652.2,0.29]
[1643818749257,0.89877266,2652.4,2652.2,0.29]
[1643818749456,0.90351132,2652.4,2652.3,0.00210019]
[1643818750205,0.90351132,2652.4,2652.3,0.00130019]
[1643818750406,1.08727266,2652.4,2652.3,0.00130019]
[1643818752809,0.89877266,2652.4,2652.3,0.00130019]
[1643818753012,0.2128559,2652.4,2652.3,0.00130019]
[1643818754150,0.2128559,2652.4,2652.0,1.17719725]
[1643818754151,0.21952655,2652.4,2652.0,1.17719725]
[1643818754553,0.00667065,2652.4,2652.0,1.17719725]
[1643818755349,0.00667065,2652.4,2652.0,0.452]
[1643818755552,0.00473871,2652.3,2652.0,0.452]
[1643818756151,0.1885,2653.2,2652.0,0.452]
[1643818756350,0.87661665,2652.9,2652.0,1.15853822]
[1643818756954,0.1885,2653.2,2652.0,1.15853822]
[1643818757201,0.1885,2653.2,2652.0,1.34693822]
[1643818757402,2.30569,2653.4,2652.0,1.64693822]
[1643818757700,2.30569,2653.4,2652.0,1.34693822]
[1643818757701,1.34261021,2653.4,2652.0,1.34693822]
[1643818757902,0.0034259,2652.7,2652.0,0.6404]
[1643818758103,0.0034259,2652.7,2652.5,0.91041123]
[1643818758407,0.0034259,2652.7,2652.2,0.452]
[1643818758805,0.16256485,2652.9,2652.2,0.452]
[1643818759303,2.15300777,2653.4,2652.2,0.452]
[1643818759304,0.19259022,2652.5,2652.2,0.452]
[1643818759706,0.19259022,2652.5,2652.0,0.1884]
[1643818759905,0.19259022,2652.5,2651.6,1.4885]
[1643818760107,0.19259022,2652.5,2651.6,0.1885]
[1643818760306,0.19601612,2652.5,2651.6,0.1885]
[1643818760505,0.17498247,2652.1,2651.7,0.69842454]
[1643818760705,0.17498247,2652.1,2651.8,0.1885]
[1643818761165,0.17498247,2652.1,2651.3,0.1885]
[1643818761359,0.17498247,2652.1,2651.1,0.1885]
[1643818761561,0.17498247,2652.1,2651.8,0.00440784]
[1643818762457,0.17498247,2652.1,2651.5,0.1885]
[1643818762660,0.17498247,2652.1,2651.0,0.1885]
[1643818762859,0.17498247,2652.1,2651.8,0.00440784]
[1643818763159,0.00474284,2652.4,2651.8,0.00440784]
[1643818763160,0.01857786,2652.3,2651.8,0.00440784]
[1643818763361,3.94348651,2653.0,2651.8,0.00440784]
[1643818763362,0.28571797,2653.2,2652.2,5.65]
[1643818763575,0.86365975,2653.8,2652.9,0.01299817]
[1643818763576,0.01896122,2653.8,2652.9,0.01299817]
[1643818763768,0.93612386,2653.9,2653.6,0.01252902]
[1643818763963,0.55912974,2654.4,2653.6,0.01252902]
[1643818764164,0.01258048,2654.8,2654.2,0.01253279]
[1643818764361,0.01258048,2654.8,2654.3,1.14306239]
[1643818764362,0.00258048,2654.8,2654.3,1.14306239]
[1643818764612,0.01258048,2655.4,2654.4,0.452]
[1643818764818,0.00258048,2655.4,2654.5,0.18826]
[1643818765015,0.00258048,2655.4,2654.6,0.6402]
[1643818765211,21.40370767,2655.7,2654.6,0.6402]
[1643818765212,0.3844369,2655.6,2654.7,0.18826]
[1643818765413,0.3844369,2655.6,2655.3,0.18231457]
[1643818765613,0.3844369,2655.6,2655.5,0.14282026]
[1643818765812,21.02185125,2655.7,2655.3,0.88932026]
[1643818766416,0.00474729,2655.7,2655.3,0.88932026]
[1643818766613,0.00474729,2655.7,2655.4,0.89820932]
[1643818766815,4.9,2655.6,2655.1,0.2756]
[1643818767015,2.34145744,2655.5,2655.1,0.2756]
[1643818767214,0.19078048,2655.6,2655.1,0.2756]
[1643818767814,0.00474739,2655.5,2655.1,0.2756]
[1643818768661,0.01,2655.5,2655.1,0.13801446]
[1643818768957,0.9501726,2655.2,2655.1,0.13801446]
[1643818769352,1.1383726,2655.2,2655.1,0.13801446]
[1643818769553,3.42102772,2655.2,2655.1,0.13801446]
[1643818769752,0.1882,2655.2,2653.9,0.1882]
[1643818769954,1.19078048,2655.1,2653.7,0.1882]
[1643818770154,0.20078048,2655.1,2653.7,0.18955242]
[1643818770353,0.19078048,2655.1,2653.7,0.18955242]
[1643818771051,0.19078048,2655.1,2654.2,0.8393503]
[1643818771253,0.00445299,2654.5,2654.2,0.8393503]
[1643818772096,0.00445299,2654.5,2653.9,0.1882]
[1643818772299,2.34282367,2654.9,2653.8,0.1882]
[1643818772501,0.2010493,2653.8,2653.7,0.1916741]
[1643818772699,0.00445301,2654.5,2653.7,0.1916741]
[1643818773298,0.23315142,2654.9,2654.0,0.86839335]
[1643818773498,3.13329498,2655.0,2654.0,0.86839335]
[1643818773700,0.16557844,2654.1,2654.0,0.86839335]
[1643818773899,0.00445311,2654.2,2654.0,4.31839335]
[1643818774699,0.01,2654.9,2654.0,4.31839335]
[1643818774901,0.00452117,2654.2,2654.0,4.31839335]
[1643818775506,0.00452117,2654.2,2654.0,5.63973877]
[1643818775972,0.00628583,2655.0,2654.0,5.63973877]
[1643818776269,0.00452117,2654.2,2654.1,7.102]
[1643818776467,0.00452117,2654.2,2654.1,7.2902]
[1643818776671,2.117e-05,2654.2,2654.1,8.61154542]
[1643818777066,0.18711374,2654.7,2654.1,8.61154542]
[1643818777366,0.18711374,2654.7,2654.1,7.42334542]
[1643818777866,0.20209904,2654.2,2654.1,6.97134542]
[1643818778068,0.94794423,2654.7,2654.1,1.32134542]
[1643818778267,0.01,2654.7,2654.1,1.32134542]
[1643818778465,2.60771425,2655.0,2654.1,1.32134542]
[1643818778466,0.01,2654.9,2654.1,1.32134542]
[1643818778669,0.01,2654.9,2654.1,1.33407987]
[1643818778966,0.19448583,2655.0,2654.1,1.33407987]
[1643818779165,0.19448583,2655.0,2654.2,0.40236322]
[1643818779166,0.1839582,2654.7,2654.2,0.40236322]
[1643818779369,0.00628583,2655.0,2654.2,0.21416322]
[1643818779370,0.0042853,2655.0,2654.2,0.21416322]
[1643818779612,0.0042853,2655.0,2654.5,1.32134542]
[1643818779815,0.00450567,2654.7,2654.5,1.32134542]
[1643818780219,0.00450567,2654.7,2654.5,1.01026978]
[1643818780417,0.00450567,2654.7,2654.5,0.96026978]
[1643818780818,0.20296618,2654.6,2654.5,0.96026978]
[1643818781821,2.05,2654.5,2653.7,0.1882]
[1643818782023,2.05,2654.5,2653.0,0.59019997]
[1643818782024,2.23739381,2654.4,2653.2,0.1882]
[1643818782221,3.24344006,2654.4,2653.9,0.00366992]
[1643818782421,1.0,2654.2,2653.9,0.00366992]
[1643818782722,4.371286,2654.0,2653.9,0.00366992]
[1643818782920,6.93326604,2654.0,2653.9,0.00366992]
[1643818783120,7.93326604,2654.0,2652.9,0.3677]
[1643818783353,1.19375072,2653.9,2652.9,0.3677]
[1643818783554,2.70631427,2653.8,2652.9,0.3677]
[1643818783755,0.1884,2653.7,2652.9,0.3677]
[1643818784155,0.21160572,2653.2,2652.9,0.3677]
[1643818785757,0.21160572,2653.2,2652.9,0.37137839]
[1643818786154,0.21160572,2653.2,2653.0,0.71642458]
[1643818786358,0.21160572,2653.2,2652.9,0.37137839]
[1643818786554,0.21160572,2653.2,2652.5,0.1884]
[1643818786756,0.21160572,2653.2,2652.7,0.1820267]
[1643818786956,0.21160572,2653.2,2653.0,0.00367832]
[1643818788002,0.1884,2653.9,2653.0,0.00367832]
[1643818788204,0.1884,2654.2,2653.1,0.452]
[1643818788405,0.00450924,2654.3,2653.1,0.752]
[1643818788802,0.00450924,2654.3,2653.2,0.1131944]
[1643818789002,0.17111735,2653.8,2653.2,0.1131944]
[1643818789204,2.518375,2654.4,2653.3,0.452]
[1643818789404,0.00435752,2654.3,2653.6,0.0036667]
[1643818789811,0.00435752,2654.3,2653.6,0.4556667]
[1643818790205,0.20946728,2654.2,2653.8,0.84722275]
[1643818790407,0.00435782,2654.3,2653.8,0.00366636]
[1643818791459,0.1884,2654.8,2653.9,0.452]
[1643818791659,0.17527553,2654.4,2653.9,0.64729513]
[1643818791858,0.17527553,2654.4,2653.9,0.4556663]
[1643818791859,0.00435794,2654.3,2653.9,0.4556663]
[1643818792058,0.00435794,2654.3,2654.0,0.72146296]
[1643818792658,0.17527553,2654.4,2653.9,0.452]
[1643818792858,0.77006459,2654.7,2653.9,0.452]
[1643818792859,0.16046241,2654.0,2653.9,0.45566872]
[1643818793861,0.16046241,2654.0,2653.9,0.452]
[1643818794462,0.00436718,2654.2,2653.9,0.452]
[1643818795109,0.00436718,2654.2,2654.1,0.88971009]
[1643818795303,0.00436718,2654.2,2654.1,4.05]
[1643818795604,0.00436718,2654.2,2653.9,0.45566872]
[1643818795605,0.2198528,2654.2,2653.9,0.45566872]
[1643818796207,0.2198528,2654.2,2653.9,0.452]
[1643818796603,0.2198528,2654.2,2653.9,0.45566818]
[1643818797203,0.00223951,2654.2,2653.9,0.45566818]
[1643818797406,0.00223951,2654.2,2653.9,0.752]
[1643818797610,0.00223951,2654.2,2653.9,0.9402]
[1643818797805,0.00223951,2654.2,2653.9,0.94791207]
[1643818798456,0.00223951,2654.2,2653.9,0.64386818]
[1643818798658,0.00223951,2654.2,2653.9,0.1882]
[1643818798862,0.16613406,2654.4,2653.9,0.1882]
[1643818799053,0.00450779,2654.3,2653.9,0.19186818]
[1643818799453,0.00628029,2654.1,2653.9,0.19186818]
[1643818799653,0.00628029,2654.1,2653.9,0.00366818]
[1643818799852,0.00628029,2654.1,2653.8,0.7980199]
[1643818800056,0.00628029,2654.1,2653.9,0.4556683]
[1643818801056,0.00628029,2654.1,2653.9,0.452]
[1643818801453,0.00628029,2654.1,2653.9,0.4556683]
[1643818802305,0.00628029,2654.1,2653.9,0.452]
[1643818802706,0.00628029,2654.1,2653.9,0.0036683]
[1643818803504,0.00628029,2654.1,2654.0,6.57969204]
[1643818803707,8.029e-05,2654.1,2654.0,5.66279304]
[1643818803908,0.19078048,2655.0,2654.0,5.66279304]
[1643818803909,7.75e-06,2654.3,2654.2,0.01598137]
[1643818804107,7.75e-06,2654.3,2654.2,0.72839994]
[1643818804305,7.75e-06,2654.3,2654.2,2.02839994]
[1643818804807,0.00258048,2655.5,2654.2,4.26839994]
[1643818805006,0.00258048,2655.9,2654.3,0.01170024]
[1643818805308,0.1882,2655.8,2654.4,0.452]
[1643818805510,0.1882,2655.8,2654.5,0.94171]
[1643818805861,0.00258048,2656.1,2654.6,0.6402]
[1643818805862,0.1882,2656.0,2654.6,0.6402]
[1643818806057,0.1882,2656.0,2655.7,2.82965537]
[1643818806258,4.23289989,2656.6,2655.8,3.7]
[1643818806259,0.1882,2656.3,2655.8,3.7]
[1643818806461,1.0806829,2656.6,2655.8,4.64132]
[1643818806462,0.1882,2656.5,2655.8,4.64132]
[1643818806759,1.0806829,2656.6,2655.9,0.452]
[1643818806956,1.0806829,2656.6,2656.2,0.72285135]
[1643818807658,0.00340457,2656.4,2656.2,0.72285135]
[1643818807856,0.00340457,2656.4,2656.3,2.802]
[1643818808257,0.00340457,2656.4,2656.3,2.35]
[1643818808456,1.0806829,2656.6,2656.3,2.35]
[1643818808658,1.0806829,2656.6,2656.4,0.452]
[1643818808859,1.0806829,2656.6,2656.4,1.30653359]
[1643818808860,0.00340457,2656.5,2656.4,1.30653359]
[1643818809607,1.0806829,2656.6,2656.4,5.70653359]
[1643818809906,1.08408747,2656.6,2656.4,5.70653359]
[1643818811007,1.0806829,2656.6,2656.4,5.70653359]
[1643818811411,0.1882,2657.5,2656.5,5.92639994]
[1643818811608,0.188,2657.7,2656.6,0.452]
[1643818811810,4.04448306,2658.2,2656.6,0.452]
[1643818811811,0.188,2657.8,2656.6,0.452]
[1643818812007,0.188,2658.0,2656.7,0.188]
[1643818812207,1.5775521,2658.2,2656.8,0.45577251]
[1643818812410,0.1881,2658.0,2657.2,0.20218625]
[1643818812608,0.37906686,2658.1,2657.3,0.01282157]
[1643818812810,0.19106686,2658.1,2657.3,0.46482157]
[1643818813367,1.5775521,2658.2,2657.4,0.94068]
[1643818813566,1.5775521,2658.2,2657.5,5.78201344]
[1643818813567,6.68e-05,2657.8,2657.5,5.78201344]
[1643818813764,6.68e-05,2657.8,2657.5,6.08201344]
[1643818813964,6.68e-05,2657.8,2657.6,3.3832]
[1643818814165,6.68e-05,2657.8,2657.7,8.342]
[1643818814363,6.68e-05,2657.8,2657.7,7.402]
[1643818814663,1.59661642,2658.2,2657.9,0.94044]
[1643818814664,1.5775521,2658.2,2657.9,0.94044]
[1643818814865,0.188,2659.6,2658.1,5.65]
[1643818815065,0.188,2659.6,2658.2,0.452]
[1643818815265,0.04149492,2659.6,2658.2,1.452]
[1643818815466,0.188,2659.5,2658.7,0.78459393]
[1643818815666,0.188,2659.5,2658.2,1.00676749]
[1643818815869,0.04035807,2659.4,2658.3,0.452]
[1643818816066,0.04035807,2659.4,2658.3,0.46419489]
[1643818816067,0.188,2659.3,2658.3,0.46419489]
[1643818816267,0.04035807,2659.4,2658.5,5.645]
[1643818816567,0.16537768,2659.2,2658.7,2.24]
[1643818816766,0.16537768,2659.2,2658.8,0.89322554]
[1643818816966,0.16537768,2659.2,2658.8,0.64]
[1643818817503,0.0047636,2659.1,2658.8,0.452]
[1643818818103,0.188,2659.1,2658.8,0.452]
[1643818818302,0.16537768,2659.2,2658.8,0.452]
[1643818818506,0.0047636,2659.1,2658.8,0.452]
[1643818818904,0.0047636,2659.1,2658.9,0.81503523]
[1643818819104,0.0047636,2659.1,2658.8,0.7683]
[1643818819303,0.12014128,2659.2,2658.8,0.7683]
[1643818819706,0.00544944,2659.3,2658.8,0.7683]
[1643818819909,0.00476357,2659.1,2658.9,0.3]
[1643818820107,0.00476357,2659.1,2658.8,2.5563]
[1643818820108,6.357e-05,2659.1,2658.8,2.5563]
[1643818820309,6.357e-05,2659.1,2659.0,4.952]
[1643818820958,0.00544944,2659.3,2659.0,0.452]
[1643818821760,0.17318499,2659.3,2659.0,0.452]
[1643818822260,0.00835211,2659.3,2659.0,0.452]
[1643818822862,0.00544944,2659.3,2659.0,0.452]
[1643818823064,0.18180453,2659.2,2658.8,0.3163]
[1643818824162,0.00544045,2659.1,2658.8,0.3163]
[1643818824362,0.00544045,2659.1,2658.9,0.00430943]
[1643818825406,0.00544045,2659.1,2658.8,0.3163]
[1643818825605,0.00544045,2659.1,2658.9,0.00469998]
[1643818825806,0.188,2659.6,2658.9,0.00469998]
[1643818826006,0.00257334,2659.5,2658.9,0.00469998]
[1643818826207,0.198,2659.7,2658.9,0.45669998]
[1643818826606,0.22474775,2659.2,2658.9,0.452]
[1643818826807,0.198,2659.7,2658.9,0.452]
[1643818827010,0.198,2659.7,2659.6,0.88029545]
[1643818827011,0.01,2659.7,2659.6,0.88029545]
[1643818827208,0.01,2660.1,2659.6,0.88029545]
[1643818827407,0.1979,2660.0,2659.6,2.15599545]
[1643818827609,12.01068,2661.1,2659.7,5.65]
[1643818827610,0.1879,2660.7,2659.7,5.65]
[1643818827810,1.91181564,2661.4,2660.3,0.1636362]
[1643818827811,0.1879,2661.0,2660.3,0.1636362]
[1643818828014,9.9855,2661.7,2660.4,0.452]
[1643818828015,0.1879,2661.3,2660.4,0.452]
[1643818828207,0.93979,2661.5,2660.4,0.452]
[1643818828469,0.1879,2661.4,2660.4,0.462]
[1643818828869,0.1879,2661.4,2660.4,0.452]
[1643818828870,0.18026903,2660.9,2660.4,0.452]
[1643818829073,0.1879,2661.4,2660.4,0.452]
[1643818829268,0.00257445,2661.3,2660.4,0.452]
[1643818829473,0.00479285,2661.0,2660.6,0.84841338]
[1643818829669,0.00479285,2661.0,2660.7,0.452]
[1643818829871,0.00479285,2661.0,2660.7,0.59019997]
[1643818829872,9.285e-05,2661.0,2660.7,0.59019997]
[1643818830075,9.285e-05,2661.0,2660.8,2.46470937]
[1643818830272,9.285e-05,2661.0,2660.9,6.102]
[1643818830472,9.285e-05,2661.0,2660.9,6.112]
[1643818830671,0.00257445,2662.6,2661.1,0.01018375]
[1643818830970,0.1877,2662.5,2661.2,0.452]
[1643818831171,0.1877,2662.5,2661.2,0.9397]
[1643818831469,0.1877,2662.7,2661.3,0.00914537]
[1643818831680,0.00257445,2662.4,2661.3,0.46114537]
[1643818831871,0.01240105,2661.9,2661.3,0.00914537]
[1643818832105,0.01240105,2661.9,2661.2,0.93456778]
[1643818832106,0.1877,2661.8,2661.2,0.93456778]
[1643818832306,0.01240105,2661.9,2661.2,0.93456778]
[1643818832506,0.19861714,2662.0,2661.3,0.452]
[1643818832909,0.20119159,2662.0,2661.3,0.452]
[1643818833306,0.20119159,2662.0,2661.2,0.01]
[1643818833307,0.21404362,2662.0,2661.2,0.01]
[1643818833507,0.21404362,2662.0,2660.8,0.452]
[1643818833508,0.1877,2661.9,2660.8,0.452]
[1643818833709,0.1877,2661.9,2660.7,0.13819997]
[1643818833710,0.00257445,2661.8,2660.7,0.13819997]
[1643818833907,0.1877,2661.7,2660.7,0.13819997]
[1643818834110,0.1877,2661.7,2660.8,0.25]
[1643818834310,0.00482294,2661.5,2660.8,0.25]
[1643818834508,0.01285769,2661.3,2660.8,0.25]
[1643818834708,0.16831164,2661.2,2660.8,0.25]
[1643818835509,0.16831164,2661.2,2660.9,0.79394346]
[1643818835510,0.00482313,2661.1,2660.9,0.79394346]
[1643818836156,0.00482313,2661.1,2660.8,0.26]
[1643818836359,0.00482313,2661.1,2660.8,0.25]
[1643818836360,0.1879,2661.1,2660.8,0.25]
[1643818836759,0.19272313,2661.1,2660.8,0.25]
[1643818837158,0.72975018,2660.9,2660.8,0.25]
[1643818837358,0.91765018,2660.9,2660.8,0.25]
[1643818837557,0.91765018,2660.9,2660.1,0.01]
[1643818837760,0.91765018,2660.9,2659.6,0.8337]
[1643818837761,0.1879,2660.8,2659.6,0.8337]
[1643818837967,0.1979,2660.8,2659.9,0.00482294]
[1643818838161,0.00257445,2660.7,2659.9,0.00482294]
[1643818838361,0.18395136,2660.1,2659.9,0.00482294]
[1643818838560,0.1879,2660.6,2660.0,0.99330987]
[1643818838760,0.1879,2660.6,2660.0,0.25]
[1643818838761,0.00257445,2660.4,2660.0,0.25]
[1643818839360,0.00257445,2660.6,2660.0,0.25]
[1643818839614,0.16999363,2660.5,2660.0,0.25]
[1643818839811,5.65,2660.2,2659.6,0.8337]
[1643818840012,0.01,2660.1,2659.6,0.8237]
[1643818840208,0.1979,2660.1,2659.6,0.8237]
[1643818840409,0.1979,2660.1,2658.8,0.01]
[1643818840410,1.0,2659.7,2658.8,0.01]
[1643818840712,1.0,2659.7,2658.1,0.55408985]
[1643818840713,0.15752452,2658.9,2658.7,0.79021685]
[1643818840911,0.00562637,2659.3,2658.7,0.79021685]
[1643818841111,0.04339651,2659.5,2658.7,1.24221685]
[1643818841112,0.00257445,2659.5,2658.7,1.24221685]
[1643818841310,0.00257445,2659.5,2658.8,0.188]
[1643818841708,0.00257445,2660.0,2658.8,0.188]
[1643818842010,0.22267571,2659.1,2658.8,0.188]
[1643818842212,0.01257445,2659.7,2658.8,0.188]
[1643818842408,0.00257445,2659.7,2658.8,0.188]
[1643818842809,0.00257445,2659.9,2658.8,0.188]
[1643818843208,0.19012308,2659.3,2658.8,0.188]
[1643818843655,0.01257445,2659.9,2659.1,0.72279107]
[1643818844056,0.00347119,2659.2,2659.1,0.72279107]
[1643818844256,0.00347119,2659.2,2658.7,0.188]
[1643818844860,0.00347119,2659.2,2659.0,0.17440612]
[1643818845257,0.00347119,2659.2,2658.7,0.188]
[1643818846259,0.00347119,2659.2,2658.1,0.188]
[1643818846260,0.21575251,2658.3,2658.1,0.188]
[1643818846458,0.19698975,2659.1,2658.0,0.33179997]
[1643818846459,0.188,2659.0,2658.0,0.13819997]
[1643818846658,0.01604564,2659.2,2658.1,0.188]
[1643818846659,0.20404564,2659.2,2658.1,0.188]
[1643818846863,0.00257445,2658.9,2658.2,0.452]
[1643818847118,0.00257445,2658.9,2658.3,0.188]
[1643818847308,0.00257445,2658.9,2658.4,0.452]
[1643818847612,0.00347119,2659.2,2658.5,0.19272987]
[1643818847808,0.00347119,2659.2,2658.5,0.20272987]
[1643818848408,0.00347119,2659.2,2658.5,0.198]
[1643818848606,0.00347119,2659.2,2658.7,0.00472976]
[1643818849208,0.00347119,2659.2,2658.7,0.45672976]
[1643818849408,0.00347119,2659.2,2658.9,0.17362665]
[1643818849610,0.00347119,2659.2,2658.8,0.188]
[1643818850009,0.00347119,2659.2,2658.8,0.00469286]
[1643818850859,0.00347119,2659.2,2658.8,0.188]
[1643818851257,0.00347119,2659.2,2658.9,0.00469283]
[1643818851656,0.16929582,2659.0,2658.9,0.00469283]
[1643818851857,0.00347119,2659.2,2658.9,0.45669283]
[1643818852161,0.00347119,2659.2,2658.5,0.188]
[1643818852357,0.00347119,2659.2,2658.8,0.00469286]
[1643818852958,0.18114465,2659.0,2658.8,0.00469286]
[1643818853158,0.00347119,2659.2,2658.5,0.23065171]
[1643818853358,0.00347119,2659.2,2658.5,0.68265171]
[1643818853558,0.00347119,2659.2,2658.9,0.00484965]
[1643818853759,0.00347119,2659.2,2659.0,0.93673824]
[1643818854158,0.18507142,2659.2,2658.9,0.00484965]
[1643818854359,0.18507142,2659.2,2658.6,0.188]
[1643818854908,0.00347119,2659.2,2659.0,0.00484959]
[1643818855715,0.17421669,2659.2,2658.9,0.74204896]
[1643818856112,0.17421669,2659.2,2659.0,0.00484959]
[1643818856911,0.17421669,2659.2,2658.9,0.74204896]
[1643818857113,0.17421669,2659.2,2659.0,0.00484959]
[1643818858012,0.17421669,2659.2,2658.5,0.67265171]
[1643818858212,0.00258067,2659.1,2658.5,0.452]
[1643818858472,0.00258067,2659.1,2659.0,0.00458066]
[1643818858870,0.17421669,2659.2,2659.0,0.00458066]
[1643818859267,0.17421669,2659.2,2658.7,0.67214451]
[1643818859670,0.17421669,2659.2,2659.0,0.00458066]
[1643818860474,0.17421669,2659.2,2658.7,0.67214451]
[1643818860871,0.00347119,2659.2,2659.1,5.19486555]
[1643818861072,0.00347119,2659.2,2659.1,5.64686555]
[1643818861272,0.00347119,2659.2,2659.1,6.64686555]
[1643818861769,0.00347119,2659.2,2659.1,6.84516658]
[1643818862211,0.00264819,2659.2,2659.1,6.84516658]
[1643818862413,0.00258059,2659.5,2659.2,5.66]
[1643818862610,0.00258059,2659.5,2659.3,0.64]
[1643818862811,0.00258059,2660.0,2659.4,0.01]
[1643818863016,0.00258059,2660.0,2659.5,0.452]
[1643818863210,0.00711947,2660.0,2659.5,0.45895912]
[1643818863411,0.00453888,2660.0,2659.9,0.89795119]
[1643818863610,0.198,2660.5,2660.0,4.5]
[1643818863611,0.188,2660.5,2660.0,4.5]
[1643818863814,0.1879,2660.6,2660.1,0.452]
[1643818864013,0.01815104,2660.7,2660.1,0.452]
[1643818864014,0.1879,2660.7,2660.1,0.452]
[1643818864312,0.1979,2661.1,2660.1,0.452]
[1643818864511,0.1879,2661.1,2660.1,0.452]
[1643818864811,0.21665333,2660.6,2660.4,0.92503007]
[1643818865012,0.21665333,2660.6,2660.4,0.452]
[1643818866064,0.21665333,2660.6,2659.8,0.811381]
[1643818866263,0.21665333,2660.6,2659.8,0.801381]
[1643818866464,0.21665333,2660.6,2659.8,0.80017294]
[1643818866864,0.21665333,2660.6,2659.8,0.801381]
[1643818867064,0.20511862,2659.9,2659.8,0.801381]
[1643818867466,0.20511862,2659.9,2659.8,0.00120806]
[1643818867668,0.20511862,2659.9,2659.5,0.1879]
[1643818867867,0.20511862,2659.9,2659.4,0.1934]
[1643818868066,0.17337725,2659.9,2658.7,0.1879]
[1643818868275,0.17337725,2659.9,2659.7,0.00402702]
[1643818868276,0.188,2659.8,2659.7,0.00402702]
[1643818868473,0.17337725,2659.9,2659.7,0.00402702]
[1643818868871,0.17337725,2659.9,2659.0,0.452]
[1643818869068,0.00258222,2659.8,2659.0,0.452]
[1643818869709,0.00258222,2659.8,2659.2,0.92525015]
[1643818869910,0.74586746,2660.0,2659.2,0.92525015]
[1643818870612,0.00338008,2660.1,2659.2,0.92525015]
[1643818870613,0.16544709,2659.5,2659.2,0.92525015]
[1643818870819,0.00258222,2659.9,2659.2,0.92525015]
[1643818871210,0.198,2660.3,2659.2,0.92525015]
[1643818871211,0.00258222,2660.2,2659.2,0.92525015]
[1643818871413,0.1879,2660.1,2659.2,0.92525015]
[1643818871611,0.19128015,2660.1,2659.6,0.88891704]
[1643818871811,0.19128015,2660.1,2659.3,0.452]
[1643818871812,0.00258222,2660.0,2659.3,0.452]
[1643818872411,0.20884669,2659.6,2659.3,0.452]
[1643818872812,0.00441969,2660.1,2659.5,4.19990776]
[1643818873014,0.00441969,2660.1,2659.5,4.20990776]
[1643818873219,0.00441969,2660.1,2659.7,0.00451273]
[1643818873468,0.00441969,2660.1,2659.6,3.05475185]
[1643818873469,0.00441969,2660.1,2659.8,0.452]
[1643818873663,0.00322086,2660.5,2659.9,0.452]
[1643818873869,0.00322086,2660.5,2660.0,0.452]
[1643818874164,0.00438135,2659.8,2659.6,1.2022359]
[1643818874564,0.00438135,2659.8,2659.6,1.1979]
[1643818874962,0.00438135,2659.8,2659.7,6.30897027]
[1643818875162,0.00438135,2659.8,2659.7,6.77097027]
[1643818875363,0.00438135,2659.8,2659.7,7.77097027]
[1643818875766,8.135e-05,2659.8,2659.7,7.77097027]
[1643818875971,8.135e-05,2659.8,2659.7,9.66359982]
[1643818876165,8.135e-05,2659.8,2659.7,8.80462955]
[1643818876567,8.44682767,2661.8,2659.8,5.65]
[1643818876770,4.89238904,2661.8,2660.8,0.01296053]
[1643818876968,1.42362513,2661.7,2660.9,7.36739807]
[1643818877213,0.47427358,2662.2,2661.5,0.01713686]
[1643818877411,0.47427358,2662.2,2661.6,0.452]
[1643818877614,3.9347,2662.9,2661.6,0.452]
[1643818877615,1.89861697,2662.6,2661.6,0.452]
[1643818877811,3.9347,2662.9,2661.6,0.452]
[1643818877812,0.15876161,2661.8,2661.6,0.452]
[1643818878216,0.91867384,2661.8,2661.1,0.01467807]
[1643818878412,0.91867384,2661.8,2660.8,0.1927]
[1643818878616,0.91867384,2661.8,2660.3,1.00684204]
[1643818878617,0.91867384,2661.8,2660.4,0.005]
[1643818878815,0.17559067,2661.4,2660.9,0.19982624]
[1643818879012,0.01287556,2661.9,2660.9,0.19982624]
[1643818879411,0.01287556,2661.9,2660.6,0.452]
[1643818879612,0.07348,2662.2,2661.2,0.25]
[1643818880012,0.01250757,2661.6,2661.2,0.0001]
[1643818880210,0.07352,2661.5,2660.4,0.005]
[1643818880410,0.07352,2661.5,2660.5,0.25]
[1643818881270,0.68556528,2660.9,2660.7,0.00487667]
[1643818881668,0.68556528,2660.9,2660.4,0.005]
[1643818881669,0.18508452,2660.8,2660.4,0.005]
[1643818885206,1.15024371,2661.1,2661.0,1.81491548]
[1643818885407,1.15024371,2661.1,2659.8,1.0]
[1643818885408,0.18149154,2660.8,2658.5,0.31923892]
[1643818885617,0.18149154,2660.8,2657.8,3.75968]
[1643818885629,1.0,2659.2,2657.7,1.67907638]
[1643818885806,0.01569858,2658.8,2657.8,1.59314006]
[1643818886011,0.452,2658.7,2657.8,1.59314006]
[1643818886207,1.94102,2658.5,2657.8,1.59314006]
[1643818886409,0.04378537,2658.3,2657.7,0.9696]
[1643818886610,0.19380486,2658.2,2657.7,0.9696]
[1643818887004,0.19380486,2658.2,2657.8,1.59363213]
[1643818887206,27.78325,2658.9,2658.2,3.6]
[1643818887207,24.96,2658.9,2658.2,3.6]
[1643818887408,24.96,2658.9,2658.8,3.4423629]
[1643818887609,0.8881,2659.8,2658.8,5.6923629]
[1643818887807,0.8881,2659.8,2658.9,0.452]
[1643818887808,2.89349,2659.7,2658.9,0.452]